bitfinex/quotes_ETHUSD_20220113
["timestamp","ask_amount","ask_price","bid_price","bid_amount"]
[1642078876731,0.7429,3366.0,3365.8,0.24297917]
[1642078877033,0.25690129,3365.8,3365.6,1.48572]
[1642078877232,1.74536863,3365.8,3365.6,1.48572]
[1642078877432,1.74536863,3365.8,3365.7,0.00113685]
[1642078877632,1.48846734,3365.8,3365.7,0.00113685]
[1642078877832,3.09588174,3365.8,3365.7,0.00113685]
[1642078878433,1.43546528,3366.0,3365.7,0.00113685]
[1642078878637,1.24688202,3365.9,3365.7,0.00113685]
[1642078879036,0.4999847,3365.8,3365.7,0.00113685]
[1642078879637,1.24688202,3365.9,3365.7,0.00113685]
[1642078879837,3.0,3365.8,3365.7,0.00113685]
[1642078880065,0.49884785,3365.7,3365.6,1.48572]
[1642078880365,0.49884785,3365.7,3365.5,0.74284]
[1642078880668,3.0,3365.8,3365.5,0.74284]
[1642078881871,0.49973938,3365.7,3365.5,0.74284]
[1642078882876,0.43553938,3365.7,3365.5,0.74284]
[1642078883478,3.0,3365.8,3365.6,1.86347251]
[1642078883922,3.0,3365.8,3365.5,0.74284]
[1642078884123,3.0,3365.8,3365.5,1.4856]
[1642078884821,3.0,3365.8,3365.5,0.74284]
[1642078885224,3.0,3365.8,3365.6,0.74273]
[1642078885621,0.00113685,3366.1,3365.7,4.6]
[1642078885822,0.00113685,3366.1,3365.8,0.74266]
[1642078886024,0.49972958,3366.6,3365.8,1.74266]
[1642078886025,0.00170527,3366.0,3365.8,1.74266]
[1642078886221,0.00170527,3366.0,3365.9,3.13268265]
[1642078886427,1.55273214,3366.5,3365.9,1.98437006]
[1642078886628,1.55273214,3366.5,3365.9,1.86127864]
[1642078886825,0.00397897,3366.4,3366.0,0.74272]
[1642078887230,0.00341054,3366.3,3366.0,0.74272]
[1642078887661,0.00284212,3366.2,3366.0,0.74272]
[1642078888062,0.0022737,3366.1,3366.0,0.74272]
[1642078888262,0.0022737,3366.1,3366.0,1.94060339]
[1642078888665,0.0022737,3366.1,3366.0,2.94060339]
[1642078889062,0.0022737,3366.1,3366.0,9.94060339]
[1642078889367,5.25088575,3367.3,3366.1,6.1]
[1642078889561,5.75061533,3367.3,3366.2,3.23133286]
[1642078889765,0.00227369,3366.5,3366.3,1.1137189]
[1642078889963,5.75061533,3367.3,3366.4,5.66198267]
[1642078890169,0.00397897,3367.2,3366.5,1.0]
[1642078890363,0.00397897,3367.2,3366.4,5.66198267]
[1642078890364,1.42715904,3367.1,3366.4,1.96198267]
[1642078890565,1.43056958,3367.1,3366.4,1.96198267]
[1642078890864,0.00284212,3367.0,3366.4,3.44696267]
[1642078891322,0.0022737,3366.9,3366.6,1.48503]
[1642078891722,1.42715904,3367.1,3366.6,1.48503]
[1642078891723,0.00170527,3366.8,3366.6,1.48503]
[1642078892124,0.00113685,3366.7,3366.6,1.48503]
[1642078892423,0.00284212,3366.7,3366.6,1.48503]
[1642078892825,0.00284212,3366.7,3366.6,3.35760281]
[1642078893824,0.00284212,3366.7,3366.6,1.48503]
[1642078894426,0.00284212,3366.7,3366.6,3.34251792]
[1642078896059,0.00284212,3366.7,3366.6,1.48503]
[1642078896265,0.00284212,3366.7,3366.6,3.43848155]
[1642078897070,0.49972958,3367.0,3366.6,3.43848155]
[1642078897365,0.49972958,3367.0,3366.6,3.44075524]
[1642078897765,0.49972958,3367.0,3366.6,1.48730369]
[1642078897965,0.49972958,3367.0,3366.7,0.74253]
[1642078898165,0.49972958,3367.0,3366.7,0.74257]
[1642078898364,0.49972958,3367.0,3366.8,0.00113685]
[1642078899415,1.24234958,3367.0,3366.8,0.00113685]
[1642078900317,1.24234958,3367.0,3366.7,0.69370685]
[1642078901320,1.15697551,3366.8,3366.7,0.69370685]
[1642078901523,1.15697551,3366.8,3366.6,1.48503]
[1642078905874,1.65670509,3366.8,3366.6,1.48503]
[1642078906522,1.15697551,3366.8,3366.6,1.48503]
[1642078907324,1.15697551,3366.8,3366.6,0.98530042]
[1642078907723,1.15697551,3366.8,3366.7,2.55240714]
[1642078911172,1.15397551,3366.8,3366.7,2.55240714]
[1642078916926,1.45397551,3366.8,3366.7,2.55240714]
[1642078918666,5.92264156,3366.8,3366.7,2.55240714]
[1642078918871,4.77997551,3366.8,3366.7,2.55240714]
[1642078919068,4.77997551,3366.8,3366.7,2.05242942]
[1642078919467,4.77997551,3366.8,3366.2,1.48551]
[1642078919668,0.74284,3366.6,3366.2,1.48551]
[1642078919868,1.55487154,3366.5,3366.3,0.00284212]
[1642078920073,2.59771154,3366.5,3366.3,0.00284212]
[1642078920471,0.49695128,3366.3,3366.2,1.48551]
[1642078920869,0.7428486,3366.4,3366.2,1.48551]
[1642078921541,1.4856986,3366.4,3366.2,1.48551]
[1642078922337,1.4856986,3366.4,3366.2,0.98558735]
[1642078922740,1.4856986,3366.4,3365.9,1.48564]
[1642078922941,1.4856986,3366.4,3365.9,1.45022453]
[1642078922942,0.74285,3366.2,3365.9,1.45022453]
[1642078923141,0.74285,3366.2,3366.0,0.00170527]
[1642078923340,1.24263458,3366.2,3366.0,0.00170527]
[1642078923845,0.74285,3366.2,3366.0,0.00170527]
[1642078924440,0.74285,3366.2,3365.9,0.74510369]
[1642078926068,1.98565087,3366.2,3365.9,0.00227369]
[1642078926671,1.98565087,3366.2,3366.0,1.45022453]
[1642078927071,2.28565087,3366.2,3366.1,0.00113684]
[1642078927273,1.98565087,3366.2,3366.1,0.00113684]
[1642078929818,0.74285,3366.2,3366.1,0.00113684]
[1642078931020,0.74285,3366.2,3366.1,1.37644863]
[1642078932028,0.74262,3366.5,3366.1,3.45574524]
[1642078932229,1.48523,3366.8,3366.3,0.74256]
[1642078932476,1.48523,3366.8,3366.4,1.89064903]
[1642078932678,0.0022737,3366.7,3366.4,1.89064903]
[1642078933081,0.00170528,3366.6,3366.4,1.89064903]
[1642078933279,0.00170528,3366.6,3366.4,2.63322903]
[1642078933480,0.00113685,3366.5,3366.4,2.63322903]
[1642078933678,0.00113685,3366.5,3366.4,1.89064903]
[1642078933878,0.00113685,3366.5,3366.4,2.91953663]
[1642078934080,0.00113685,3366.5,3366.4,3.25195288]
[1642078934280,1.1855,3367.7,3366.7,0.74244]
[1642078934480,1.1855,3367.7,3366.8,0.3712104]
[1642078934481,5.99333575,3367.3,3366.8,0.3712104]
[1642078934680,0.00284212,3367.0,3366.8,0.3712104]
[1642078934883,0.00284212,3367.0,3366.9,1.48486]
[1642078935180,5.99333575,3367.3,3366.9,1.48486]
[1642078935381,5.99333575,3367.3,3366.9,2.62333211]
[1642078935583,5.99333575,3367.3,3367.0,1.0]
[1642078935584,0.00397897,3367.2,3367.0,1.0]
[1642078935981,0.00341054,3367.1,3367.0,1.0]
[1642078936229,0.00341054,3367.1,3367.0,1.48496]
[1642078937626,0.00341054,3367.1,3367.0,3.32678915]
[1642078937826,0.00341054,3367.1,3367.0,3.29114115]
[1642078938027,0.00341054,3367.1,3367.0,4.77592115]
[1642078938232,0.00341054,3367.1,3367.0,5.77592115]
[1642078940073,0.00341054,3367.1,3367.0,8.32789909]
[1642078940273,0.00341054,3367.1,3367.0,3.98693794]
[1642078941080,0.00341054,3367.1,3367.0,6.83939454]
[1642078941483,0.00341054,3367.1,3367.0,4.98693794]
[1642078942082,0.00341054,3367.1,3367.0,5.42108709]
[1642078942382,0.00341054,3367.1,3367.0,3.55197794]
[1642078943585,0.00341054,3367.1,3367.0,2.55197794]
[1642078944419,0.00341054,3367.1,3366.5,1.45022453]
[1642078944620,0.30341054,3367.1,3366.5,1.45022453]
[1642078944823,0.74257,3366.9,3366.5,1.45022453]
[1642078945021,0.74257,3366.9,3366.4,1.45022453]
[1642078945223,0.00170527,3366.8,3366.4,1.45022453]
[1642078945623,0.74258,3366.6,3366.4,1.45022453]
[1642078946031,1.80408,3366.6,3366.4,1.45022453]
[1642078946330,0.49978458,3366.4,3365.9,1.96523449]
[1642078946529,3.74837401,3366.2,3365.9,1.96523449]
[1642078946729,3.74837401,3366.2,3366.0,0.00170528]
[1642078946930,3.74837401,3366.2,3365.3,3.61921517]
[1642078946931,0.74291,3365.9,3365.3,3.61921517]
[1642078947128,3.57491985,3365.9,3365.3,3.61921517]
[1642078947329,6.7,3365.8,3364.9,3.7515]
[1642078947572,6.7,3365.8,3364.8,4.82562023]
[1642078947573,1.48049491,3365.0,3364.8,4.82562023]
[1642078947771,0.74306,3364.9,3364.8,4.82562023]
[1642078948077,2.15415826,3364.9,3364.8,4.82903077]
[1642078948375,2.15415826,3364.9,3364.8,0.00341054]
[1642078948771,2.15415826,3364.9,3364.4,3.62831819]
[1642078948772,0.74306,3364.8,3364.5,0.00511581]
[1642078948974,0.74308,3364.7,3364.5,0.00511581]
[1642078949872,2.22923,3364.7,3364.4,0.00568423]
[1642078950073,0.04236593,3364.6,3364.4,0.00568423]
[1642078950273,0.04236593,3364.6,3363.9,0.00852635]
[1642078950476,2.22923,3364.7,3363.9,0.00852635]
[1642078950477,0.74315,3364.5,3363.9,0.00852635]
[1642078950676,0.74323,3364.3,3363.9,0.00852635]
[1642078950876,0.74323,3364.3,3363.2,9.93021582]
[1642078950877,1.28187916,3364.1,3363.6,0.01023162]
[1642078951080,1.26837781,3363.7,3363.6,0.01023162]
[1642078951336,1.26837781,3363.7,3363.3,0.01193689]
[1642078951538,1.56837781,3363.7,3363.1,0.01307374]
[1642078952137,0.74332,3363.6,3363.1,0.01307374]
[1642078952338,0.74332,3363.6,3363.1,1.51941355]
[1642078952536,0.3,3363.6,3363.1,1.51941355]
[1642078952738,0.49978458,3363.8,3363.2,0.01250531]
[1642078953438,0.74332,3363.6,3363.2,0.01250531]
[1642078953640,0.74332,3363.6,3363.3,1.43126008]
[1642078954037,3.9148,3364.4,3363.4,1.91612292]
[1642078954336,0.49978458,3363.9,3363.5,0.01080004]
[1642078954536,0.16815999,3363.8,3363.5,0.01080004]
[1642078954736,0.91132999,3363.8,3363.5,0.01080004]
[1642078954984,0.16815999,3363.8,3363.5,0.01080004]
[1642078955685,0.16815999,3363.8,3363.6,0.74311]
[1642078955886,0.16815999,3363.8,3363.7,2.32263878]
[1642078956086,0.16815999,3363.8,3363.7,2.33230198]
[1642078956295,1.48621,3364.5,3363.7,4.78247531]
[1642078956692,0.74304,3364.4,3363.8,1.86665667]
[1642078956890,0.74304,3364.4,3364.0,1.3017936]
[1642078957090,0.74304,3364.4,3364.1,1.88639876]
[1642078957290,0.74304,3364.4,3364.1,2.19378826]
[1642078957492,0.74304,3364.4,3364.2,0.00682108]
[1642078960328,0.74304,3364.4,3364.1,0.0073895]
[1642078960527,0.3,3364.3,3364.1,0.0073895]
[1642078962228,1.24282458,3364.4,3364.1,0.0073895]
[1642078962473,2.5,3364.3,3364.1,0.0073895]
[1642078962871,2.8,3364.3,3364.1,0.0073895]
[1642078963069,2.8,3364.3,3363.6,0.01023162]
[1642078963267,1.4746645,3363.9,3363.4,0.01136847]
[1642078963667,2.91936003,3363.9,3363.4,1.43779013]
[1642078964071,0.49978458,3363.8,3363.5,0.01080004]
[1642078964569,1.24312458,3363.8,3363.5,0.01080004]
[1642078964768,0.74334,3363.8,3363.5,0.01080004]
[1642078965369,0.74334,3363.8,3363.6,2.5548454]
[1642078965569,1.71674,3363.8,3363.6,2.5548454]
[1642078965771,3.89603284,3363.8,3363.6,2.5548454]
[1642078966221,0.74343,3363.6,3362.9,5.3242769]
[1642078966423,0.74343,3363.6,3362.9,1.4650769]
[1642078966626,0.74341,3363.1,3363.0,0.00397896]
[1642078967423,1.24319458,3363.1,3363.0,0.00397896]
[1642078968426,1.24319458,3363.1,3362.8,0.00511581]
[1642078968630,2.64708,3363.8,3362.9,3.75]
[1642078969028,0.49994052,3363.1,3362.9,3.75]
[1642078969626,0.74334,3363.6,3363.0,1.20936052]
[1642078970068,1.24328052,3363.6,3363.1,0.00341054]
[1642078970274,3.13009912,3363.6,3363.1,0.00341054]
[1642078970469,2.6301586,3363.6,3363.1,0.00341054]
[1642078970669,0.74334,3363.6,3363.1,0.00341054]
[1642078970869,0.49994052,3363.5,3363.1,0.00341054]
[1642078971276,2.374754,3363.5,3363.1,0.00341054]
[1642078971676,2.674754,3363.5,3363.1,0.00341054]
[1642078971881,0.74342,3363.4,3362.8,0.00511581]
[1642078972375,0.49994052,3363.2,3362.8,0.00511581]
[1642078972777,1.89352428,3363.4,3362.8,0.00511581]
[1642078972975,1.8933722,3363.4,3362.8,0.00511581]
[1642078973174,0.49994052,3363.2,3362.8,0.00511581]
[1642078973375,0.74345,3363.1,3362.8,0.00511581]
[1642078973834,0.3,3363.0,3362.8,0.00511581]
[1642078974034,0.79994052,3363.0,3362.8,0.00511581]
[1642078975234,2.71328216,3363.0,3362.8,0.00511581]
[1642078975435,5.89363,3362.9,3362.8,0.00511581]
[1642078975635,3.89363,3362.9,3362.8,0.00511581]
[1642078976036,0.49482471,3362.8,3362.7,1.0044647]
[1642078976439,0.3,3362.8,3362.7,1.0044647]
[1642078977485,2.25891276,3362.8,3362.7,1.0044647]
[1642078977872,2.25891276,3362.8,3362.7,0.50458265]
[1642078978274,0.3,3362.8,3362.7,0.0048132]
[1642078978476,2.26207379,3362.9,3362.7,0.0048132]
[1642078978672,1.87875997,3362.8,3362.7,0.0048132]
[1642078978873,0.3,3362.8,3362.7,0.0048132]
[1642078979275,0.3958,3362.9,3362.7,0.0048132]
[1642078979473,0.3958,3362.9,3362.0,3.9189]
[1642078979474,0.49493395,3362.7,3362.0,3.9189]
[1642078979683,0.49493395,3362.7,3361.8,3.2099]
[1642078979874,0.49493395,3362.7,3362.1,0.00397896]
[1642078980076,0.3,3362.8,3362.1,0.00397896]
[1642078980277,0.3,3362.8,3361.8,1.00568423]
[1642078980476,0.3,3362.8,3361.9,0.00511581]
[1642078980675,2.04371494,3363.0,3361.9,0.00511581]
[1642078980875,1.3657039,3362.5,3361.9,0.00511581]
[1642078981076,0.3,3362.4,3361.9,0.00511581]
[1642078981330,0.3,3362.4,3362.2,1.47734823]
[1642078981331,0.49999114,3362.3,3362.2,1.47734823]
[1642078981723,0.49999114,3362.3,3362.2,1.48075877]
[1642078982526,1.88939157,3362.9,3362.8,1.20137758]
[1642078982726,0.3,3362.4,3362.2,0.00341054]
[1642078983134,1.88939157,3362.9,3361.8,0.00568423]
[1642078983135,0.49976945,3362.3,3361.8,0.00568423]
[1642078983728,0.49976945,3362.3,3361.9,1.39415154]
[1642078984130,0.3,3362.3,3362.1,0.23935521]
[1642078984330,1.24815511,3362.6,3362.1,0.23935521]
[1642078984627,1.24815511,3362.6,3361.9,1.34934133]
[1642078984628,2.01790995,3362.5,3362.2,0.24276575]
[1642078985070,2.01790995,3362.5,3362.3,0.00284211]
[1642078985271,0.3,3362.4,3362.3,0.00284211]
[1642078986071,2.29178511,3362.6,3362.3,0.00284211]
[1642078986879,1.54815511,3362.6,3362.3,0.00284211]
[1642078987077,1.54815511,3362.6,3362.4,0.23935521]
[1642078987482,1.54815511,3362.6,3362.5,0.00170527]
[1642078987877,0.3,3362.6,3362.5,0.00170527]
[1642078988078,2.16618858,3362.7,3362.5,0.00170527]
[1642078988277,0.3,3362.7,3362.6,0.23935521]
[1642078988477,1.90373831,3362.7,3362.6,0.23935521]
[1642078988721,3.01944897,3362.7,3362.6,0.24049205]
[1642078988923,3.01944897,3362.7,3362.6,2.79634688]
[1642078989323,1.11571066,3362.7,3362.6,2.79634688]
[1642078989523,1.85934066,3362.7,3362.6,2.79634688]
[1642078989726,0.3,3362.8,3362.6,2.79634688]
[1642078990129,2.32471984,3362.9,3362.6,2.79634688]
[1642078990527,0.3,3362.9,3362.6,2.79634688]
[1642078990725,0.00113685,3363.0,3362.8,0.23935521]
[1642078990726,0.30113685,3363.0,3362.8,0.23935521]
[1642078990926,1.49349461,3362.9,3362.8,0.23935521]
[1642078991127,4.17261862,3362.9,3362.8,0.23935521]
[1642078991532,5.21620862,3362.9,3362.8,0.23935521]
[1642078993173,6.72395403,3362.9,3362.8,0.23935521]
[1642078993573,5.21620862,3362.9,3362.8,0.23935521]
[1642078999833,1.04359,3362.9,3362.8,0.23935521]
[1642079000078,0.00113685,3363.0,3362.8,0.23935521]
[1642079001077,1.9337109,3363.0,3362.9,1.67282254]
[1642079001281,2.2337109,3363.0,3362.9,0.23935521]
[1642079002083,1.4901409,3363.0,3362.9,0.23935521]
[1642079003727,2.2336909,3363.0,3362.9,0.23935521]
[1642079006132,4.14678913,3363.0,3362.9,0.23935521]
[1642079007135,4.14678913,3363.0,3362.9,2.79547748]
[1642079007136,3.40323913,3363.0,3362.9,2.79547748]
[1642079007335,1.4901409,3363.0,3362.9,2.79547748]
[1642079009275,2.82976047,3363.0,3362.9,2.79547748]
[1642079010076,4.71852936,3363.0,3362.9,2.79547748]
[1642079012931,4.71739251,3363.0,3362.9,2.79547748]
[1642079013535,1.487622,3362.8,3362.6,0.00113684]
[1642079013732,1.487622,3362.8,3362.0,1.4480754]
[1642079013733,6.7011,3362.6,3362.0,1.4480754]
[1642079013932,2.65769,3362.5,3362.0,1.4480754]
[1642079014132,1.0,3362.4,3361.7,2.17610891]
[1642079014331,0.426,3362.3,3361.7,2.17610891]
[1642079014531,0.3,3361.8,3361.7,2.17610891]
[1642079014732,2.82939217,3361.8,3361.7,2.17610891]
[1642079014981,2.82939217,3361.8,3361.7,0.00227369]
[1642079015475,2.35959217,3361.8,3361.4,0.00397896]
[1642079015676,0.74395,3361.6,3361.4,0.00397896]
[1642079015875,1.48783,3361.6,3361.1,0.00568424]
[1642079016082,0.3,3361.5,3361.1,0.00568424]
[1642079016279,0.3,3361.5,3361.0,0.00625266]
[1642079016681,1.22754074,3361.5,3361.2,1.52650245]
[1642079016880,0.426,3361.4,3361.2,1.52650245]
[1642079017079,2.21389,3361.4,3361.3,0.00454739]
[1642079017279,2.21389,3361.4,3361.2,1.03128039]
[1642079017479,0.726,3361.4,3361.2,1.03128039]
[1642079017880,0.726,3361.4,3361.2,1.02651855]
[1642079018282,0.74389,3361.3,3361.2,1.02651855]
[1642079018482,2.6296304,3361.3,3361.2,0.53128783]
[1642079019731,3.4691304,3361.3,3360.6,3.7704]
[1642079019936,1.52353946,3361.2,3360.4,1.1508]
[1642079020142,1.48809,3361.0,3360.7,0.00341054]
[1642079020334,2.06507304,3360.9,3360.7,0.00341054]
[1642079020632,2.06507304,3360.9,3360.6,1.52379508]
[1642079020833,2.80919304,3360.9,3360.6,1.52379508]
[1642079021235,0.3,3360.8,3360.6,1.52379508]
[1642079021437,1.87458193,3360.7,3360.6,1.52379508]
[1642079021638,2.61869193,3360.7,3360.6,1.52379508]
[1642079021938,0.74411,3360.7,3360.6,1.52777404]
[1642079022338,2.62125987,3360.7,3360.6,1.52777404]
[1642079022597,0.74411,3360.7,3360.6,1.52777404]
[1642079022798,2.63026096,3360.7,3360.6,1.52777404]
[1642079024001,0.74411,3360.7,3360.6,1.52777404]
[1642079024602,0.74411,3360.7,3360.6,1.0280658]
[1642079025201,0.74411,3360.7,3360.6,0.52834111]
[1642079025901,2.60999306,3360.7,3360.6,0.00397896]
[1642079026330,0.24436705,3360.6,3360.1,0.00682108]
[1642079026527,0.7441,3360.4,3360.1,0.00682108]
[1642079026929,1.0441,3360.4,3360.1,0.00682108]
[1642079027128,1.543847,3360.4,3360.3,1.24133771]
[1642079027628,1.543847,3360.4,3360.3,1.24702194]
[1642079028629,3.4077532,3360.4,3360.3,1.24702194]
[1642079028931,1.543847,3360.4,3360.3,1.24702194]
[1642079029128,0.799747,3360.4,3360.3,1.24702194]
[1642079030791,0.499747,3360.4,3360.3,1.24702194]
[1642079031796,0.499747,3360.4,3360.3,1.54702194]
[1642079032001,1.6597,3361.3,3360.3,1.54702194]
[1642079032199,1.2337,3361.3,3360.3,1.54702194]
[1642079032398,0.499747,3361.2,3360.4,0.00511581]
[1642079033001,1.13619352,3361.1,3360.4,0.00511581]
[1642079033201,1.63594052,3361.1,3360.4,1.49487099]
[1642079033504,1.93594052,3361.1,3360.5,0.00454739]
[1642079033932,1.43619352,3361.1,3360.5,0.00454739]
[1642079034135,1.93594052,3361.1,3360.5,0.00454739]
[1642079035535,1.93594052,3361.1,3360.6,2.5575235]
[1642079035938,0.799747,3361.1,3360.6,2.5575235]
[1642079036541,3.2972,3361.6,3360.7,1.0]
[1642079036745,0.3,3361.1,3360.7,1.0]
[1642079036941,1.41423887,3361.5,3360.8,0.00284212]
[1642079038279,0.00113685,3361.5,3360.8,0.00284212]
[1642079039080,0.00113685,3361.5,3360.7,0.95014212]
[1642079039282,0.00341055,3361.4,3360.7,0.95014212]
[1642079039580,0.00284212,3361.3,3360.7,1.8909035]
[1642079039780,0.00284212,3361.3,3360.7,1.8807506]
[1642079039984,0.0022737,3361.2,3360.6,1.65862974]
[1642079040185,0.0022737,3361.2,3360.7,1.88172527]
[1642079040381,0.00170527,3361.1,3360.6,2.03052974]
[1642079040783,0.00113685,3361.0,3360.6,2.77432974]
[1642079040982,0.00113685,3361.0,3360.7,0.7438]
[1642079041246,0.00511582,3361.7,3360.7,1.7438]
[1642079041652,0.00454739,3361.6,3360.8,0.3718776]
[1642079041857,0.00454739,3361.6,3360.8,0.6718776]
[1642079042053,0.00397897,3361.5,3361.0,1.48744]
[1642079042252,0.00397897,3361.5,3361.0,1.04374]
[1642079042451,0.00341055,3361.4,3361.0,1.04374]
[1642079042652,0.00341055,3361.4,3361.0,1.07600192]
[1642079042853,3.80993055,3362.3,3361.7,1.51282511]
[1642079043056,0.3,3362.3,3361.8,1.16427385]
[1642079043253,0.00454738,3362.2,3361.8,1.16427385]
[1642079043653,0.00397896,3362.1,3361.8,1.16427385]
[1642079044053,0.00341054,3362.0,3361.8,1.16427385]
[1642079044459,0.00284211,3361.9,3361.8,1.16427385]
[1642079044656,0.00284211,3361.9,3361.8,1.46427385]
[1642079045681,0.00284211,3361.9,3361.8,2.20780385]
[1642079046084,0.00284211,3361.9,3361.8,5.50780385]
[1642079046286,0.00284211,3361.9,3361.8,5.45780385]
[1642079046887,0.00284211,3361.9,3361.8,7.27086089]
[1642079049334,0.00284211,3361.9,3361.8,8.54726083]
[1642079050339,0.00284211,3361.9,3361.8,25.96180301]
[1642079050739,0.00284211,3361.9,3361.8,27.44872301]
[1642079050944,0.75620771,3364.0,3362.6,0.74337]
[1642079051148,0.70620771,3364.0,3362.8,0.74337]
[1642079051347,0.00852635,3363.4,3362.9,1.94298656]
[1642079051542,0.00852635,3363.4,3363.0,1.09980338]
[1642079051742,0.00795793,3363.3,3363.0,1.39980338]
[1642079051941,1.08781363,3363.2,3363.0,0.3]
[1642079052142,1.09520314,3363.2,3362.6,2.04343]
[1642079052347,0.00682108,3363.1,3362.6,2.04343]
[1642079052618,0.00682108,3363.1,3362.9,2.55658704]
[1642079052917,0.00625266,3363.0,3362.9,3.75503732]
[1642079053717,0.00625266,3363.0,3362.9,2.55658704]
[1642079054116,0.00625266,3363.0,3362.7,2.0]
[1642079054316,0.00625266,3363.0,3362.4,0.3]
[1642079054516,0.00568424,3362.9,3362.3,1.3]
[1642079054920,0.00511581,3362.8,3362.5,1.48689]
[1642079055218,0.00511581,3362.8,3362.6,0.3]
[1642079055416,0.00454739,3362.7,3362.6,0.3]
[1642079055817,0.00454739,3362.7,3362.6,1.57840384]
[1642079056239,0.00454739,3362.7,3362.6,2.57840384]
[1642079056445,0.00454739,3362.7,3362.6,4.62786864]
[1642079056850,0.00454739,3362.7,3362.6,2.61331095]
[1642079057046,0.00454739,3362.7,3362.6,6.56331095]
[1642079057646,0.00454739,3362.7,3362.6,2.61331095]
[1642079057847,0.00454739,3362.7,3362.6,2.57840384]
[1642079058945,0.00454739,3362.7,3362.6,5.13456047]
[1642079059546,0.00454739,3362.7,3362.6,5.16955781]
[1642079059748,0.00454739,3362.7,3362.6,5.13456047]
[1642079060421,0.00454739,3362.7,3362.6,4.13456047]
[1642079060821,1.62117587,3363.1,3362.6,4.87802047]
[1642079061220,0.00170527,3363.0,3362.6,4.87802047]
[1642079061623,0.00113685,3362.9,3362.6,5.24972197]
[1642079062226,0.00113685,3362.9,3362.6,2.69356534]
[1642079062427,0.00113685,3362.9,3362.7,0.74339]
[1642079062630,0.00113685,3362.9,3362.7,1.04339]
[1642079063225,0.00113685,3362.9,3362.7,0.3]
[1642079063428,0.00113685,3362.9,3362.7,1.92253521]
[1642079063628,0.00113685,3362.9,3362.8,2.6]
[1642079063850,0.00113685,3362.9,3362.8,5.99026049]
[1642079064649,0.00113685,3362.9,3362.8,7.78242552]
[1642079064849,0.00113685,3362.9,3362.8,6.44744626]
[1642079065549,0.00113685,3362.9,3362.8,8.35484225]
[1642079066355,0.00113685,3362.9,3362.8,6.44744626]
[1642079067599,0.499747,3363.6,3362.9,6.7]
[1642079067800,0.426,3365.0,3363.2,0.74318]
[1642079068001,0.426,3365.0,3363.3,3.24439556]
[1642079068002,0.00284211,3363.4,3363.3,3.24439556]
[1642079068400,0.00284211,3363.4,3363.3,4.24439556]
[1642079068618,0.00284211,3363.4,3363.3,5.51087534]
[1642079068800,0.00284211,3363.4,3363.3,8.06689904]
[1642079069201,0.00284211,3363.4,3363.3,4.82250348]
[1642079069701,0.00284211,3363.4,3363.3,3.82250348]
[1642079070104,0.00284211,3363.4,3363.3,4.82250348]
[1642079070802,0.00284211,3363.4,3363.3,4.29579626]
[1642079071254,0.00284211,3363.4,3363.3,5.44920084]
[1642079071650,0.00284211,3363.4,3363.3,5.74706746]
[1642079071850,0.00284211,3363.4,3363.3,8.30269876]
[1642079072849,0.00284211,3363.4,3363.3,7.55948876]
[1642079073852,0.00284211,3363.4,3363.3,7.52300636]
[1642079074851,0.49258911,3364.0,3363.4,3.4]
[1642079075094,0.49258911,3364.0,3363.6,0.74322]
[1642079075293,0.00284212,3363.9,3363.6,0.74322]
[1642079075493,0.00284212,3363.9,3363.6,1.04322]
[1642079075695,0.0022737,3363.8,3363.6,1.04322]
[1642079076194,0.00170527,3363.7,3363.6,1.4148145]
[1642079076601,0.00511582,3363.7,3363.6,1.4148145]
[1642079077402,0.00511582,3363.7,3363.6,5.1579745]
[1642079077604,0.00511582,3363.7,3363.6,8.71355922]
[1642079078603,0.00511582,3363.7,3363.6,6.97039922]
[1642079078846,0.00511582,3363.7,3363.6,6.59880472]
[1642079079446,0.00511582,3363.7,3363.6,3.59880472]
[1642079080452,0.50484014,3363.7,3363.6,3.59880472]
[1642079082054,0.50484014,3363.7,3363.6,4.34196472]
[1642079082695,0.50484014,3363.7,3363.6,10.24196472]
[1642079082896,0.50484014,3363.7,3363.6,10.27967191]
[1642079083898,1.1412,3364.4,3364.3,1.35776301]
[1642079084099,4.52576665,3365.1,3364.9,1.21965603]
[1642079084298,4.52576665,3365.1,3364.3,1.35776301]
[1642079084499,4.52576665,3365.1,3364.3,0.85791169]
[1642079084500,0.00397896,3365.0,3364.3,0.85791169]
[1642079084798,0.00341054,3364.9,3364.3,0.85791169]
[1642079085000,0.00341054,3364.9,3364.0,0.3715428]
[1642079085001,0.49985133,3364.3,3364.0,0.3715428]
[1642079085201,0.49985133,3364.3,3364.0,0.74312]
[1642079085402,0.49985133,3364.3,3364.1,1.18636104]
[1642079085701,0.00284211,3364.8,3364.1,1.18636104]
[1642079085901,0.30284211,3364.8,3364.1,0.68650971]
[1642079086101,5.14416665,3365.1,3364.1,0.68650971]
[1642079086102,0.00341054,3364.7,3364.1,0.68650971]
[1642079086365,0.00341054,3364.7,3364.3,0.7431]
[1642079086564,0.00284212,3364.6,3364.3,0.73191059]
[1642079086962,0.00227369,3364.5,3364.3,0.73191059]
[1642079087365,0.00170527,3364.4,3364.3,0.73191059]
[1642079088563,0.00170527,3364.4,3364.3,3.28734083]
[1642079091102,0.00170527,3364.4,3364.3,0.73191059]
[1642079092105,0.00170527,3364.4,3364.3,3.28734034]
[1642079095065,0.00170527,3364.4,3364.3,2.78867843]
[1642079095466,0.00170527,3364.4,3364.3,2.78748902]
[1642079096068,0.00170527,3364.4,3364.3,2.28882711]
[1642079096972,0.00170527,3364.4,3364.1,2.17264971]
[1642079097493,0.7552078,3365.1,3364.3,0.24324868]
[1642079097895,0.00511581,3365.0,3364.3,0.24324868]
[1642079098096,0.25660264,3364.3,3364.1,2.17264971]
[1642079098698,2.52785195,3364.9,3363.5,22.69952874]
[1642079098699,1.92375394,3364.2,3363.5,3.83337874]
[1642079098896,0.7433261,3364.1,3363.5,3.83337874]
[1642079099096,0.01282905,3364.2,3363.6,0.00284212]
[1642079099097,2.03996101,3364.0,3363.6,0.00284212]
[1642079099997,1.79956775,3364.2,3363.6,1.49649133]
[1642079099998,0.49983785,3363.7,3363.6,1.49649133]
[1642079102451,0.49983785,3363.7,3363.6,5.24649133]
[1642079104051,0.49983785,3363.7,3363.6,6.54649133]
[1642079104453,3.27847048,3364.8,3363.7,6.15]
[1642079104659,3.27847048,3364.8,3364.0,0.74312]
[1642079104660,0.00397896,3364.8,3364.0,0.74312]
[1642079104856,0.00341054,3364.7,3364.1,0.74305]
[1642079105109,0.00341054,3364.7,3364.0,0.74312]
[1642079105308,0.00284212,3364.6,3364.0,0.74312]
[1642079105709,0.00227369,3364.5,3364.1,0.44308026]
[1642079105910,0.00227369,3364.5,3364.2,1.34832569]
[1642079106114,0.00170527,3364.4,3364.2,1.1485041]